[Event "Titled Tuesday Blitz September 21 2021"]
[White "Garcia Garcia, Alejandro"]
[Black "Trent, Lawrence"]
[WhiteFideId "3516334"]
[BlackFideId "408638"]
[WhiteElo "2131"]
[BlackElo "2474"]
[Result "0-1"]
[Round "03"]
[TimeControl "180+1"]
[Date "2021.09.21"]
[WhiteClock "0:00:04"]
[BlackClock "0:00:19"]

1. Nf3 {[%clk 0:03:00]}  Nc6 {[%clk 0:02:59]} 2. d4 {[%clk 0:02:59]}  d6 {[%clk 0:02:59]} 3. g3 {[%clk 0:02:54]}  Bg4 {[%clk 0:02:56]} 4. Bg2 {[%clk 0:02:53]}  e5 {[%clk 0:02:57]} 5. h3 {[%clk 0:02:52]}  Bh5 {[%clk 0:02:50]} 6. d5 {[%clk 0:02:47]}  Nce7 {[%clk 0:02:48]} 7. Nc3 {[%clk 0:02:47]}  f5 {[%clk 0:02:45]} 8. Ng5 {[%clk 0:02:44]}  Nf6 {[%clk 0:02:42]} 9. Ne6 {[%clk 0:02:34]}  Qd7 {[%clk 0:02:41]} 10. Nb5 {[%clk 0:02:24]}  Kf7 {[%clk 0:02:15]} 11. Nbxc7 {[%clk 0:02:18]}  Rc8 {[%clk 0:02:15]} 12. Nxf8 {[%clk 0:02:17]}  Qxc7 {[%clk 0:02:09]} 13. Ne6 {[%clk 0:02:10]}  Qxc2 {[%clk 0:02:09]} 14. Ng5+ {[%clk 0:01:58]}  Kg6 {[%clk 0:02:06]} 15. Qxc2 {[%clk 0:01:47]}  Rxc2 {[%clk 0:02:05]} 16. f3 {[%clk 0:01:47]}  h6 {[%clk 0:02:02]} 17. Ne6 {[%clk 0:01:44]}  Nfxd5 {[%clk 0:01:59]} 18. g4 {[%clk 0:01:17]}  Kf6 {[%clk 0:01:58]} 19. Kd1 {[%clk 0:01:07]}  Rhc8 {[%clk 0:01:56]} 20. Nd8 {[%clk 0:01:00]}  fxg4 {[%clk 0:01:41]} 21. hxg4 {[%clk 0:00:55]}  Bg6 {[%clk 0:01:41]} 22. g5+ {[%clk 0:00:19]}  hxg5 {[%clk 0:01:33]} 23. Nxb7 {[%clk 0:00:19]}  Nf5 {[%clk 0:01:29]} 24. Bh3 {[%clk 0:00:09]}  Nde3+ {[%clk 0:01:24]} 25. Bxe3 {[%clk 0:00:08]}  Nxe3+ {[%clk 0:01:24]} 26. Ke1 {[%clk 0:00:09]}  Rc1+ {[%clk 0:01:19]} 27. Kf2 {[%clk 0:00:09]}  Rxa1 {[%clk 0:01:11]} 28. Rxa1 {[%clk 0:00:10]}  g4 {[%clk 0:01:01]} 29. Nxd6 {[%clk 0:00:09]}  Rb8 {[%clk 0:01:01]} 30. fxg4 {[%clk 0:00:09]}  Nd5 {[%clk 0:00:58]} 31. Nc4 {[%clk 0:00:08]}  Nf4 {[%clk 0:00:56]} 32. Bg2 {[%clk 0:00:08]}  Bf7 {[%clk 0:00:52]} 33. b3 {[%clk 0:00:06]}  Bxc4 {[%clk 0:00:52]} 34. bxc4 {[%clk 0:00:07]}  Rb2 {[%clk 0:00:51]} 35. Bd5 {[%clk 0:00:05]}  Rxe2+ {[%clk 0:00:50]} 36. Kf3 {[%clk 0:00:05]}  Rd2 {[%clk 0:00:50]} 37. Be4 {[%clk 0:00:04]}  Nh3 {[%clk 0:00:46]} 38. Ke3 {[%clk 0:00:03]}  Rb2 {[%clk 0:00:46]} 39. c5 {[%clk 0:00:03]}  Ke7 {[%clk 0:00:43]} 40. c6 {[%clk 0:00:02]}  Rb5 {[%clk 0:00:22]} 41. Rd1 {[%clk 0:00:02]}  Rc5 {[%clk 0:00:21]} 42. Rd7+ {[%clk 0:00:02]}  Kf6 {[%clk 0:00:21]} 43. Rxa7 {[%clk 0:00:03]}  Ng5 {[%clk 0:00:20]} 44. Bg2 {[%clk 0:00:03]}  Ne6 {[%clk 0:00:20]} 45. Kd3 {[%clk 0:00:02]}  Nf4+ {[%clk 0:00:20]} 46. Ke4 {[%clk 0:00:03]}  Nxg2 {[%clk 0:00:20]} 47. g5+ {[%clk 0:00:03]}  Kg6 {[%clk 0:00:19]} 48. c7 {[%clk 0:00:04]}  Nf4 {[%clk 0:00:19]} 49. a4 {[%clk 0:00:04]}  Ne6 {[%clk 0:00:18]} 50. a5 {[%clk 0:00:05]}  Nxc7 {[%clk 0:00:19]} 51. Rb7 {[%clk 0:00:05]}  Kxg5 {[%clk 0:00:19]} 52. a6 {[%clk 0:00:04]}  Nxa6 {[%clk 0:00:19]} 53. Rxg7+ {[%clk 0:00:05]}  Kf6 {[%clk 0:00:20]} 54. Rh7 {[%clk 0:00:05]}  Nb4 {[%clk 0:00:19]} 55. Rh6+ {[%clk 0:00:05]}  Kg5 {[%clk 0:00:19]} 56. Rb6 {[%clk 0:00:06]}  Nc6 {[%clk 0:00:19]} 57. Rb7 {[%clk 0:00:05]}  Kf6 {[%clk 0:00:19]} 58. Rb6 {[%clk 0:00:05]}  Ke6 {[%clk 0:00:19]} 59. Ra6 {[%clk 0:00:04]}  Rc4+ {[%clk 0:00:19]} 60. Kd3 {[%clk 0:00:04]}  Kd5 {[%clk 0:00:19]} 0-1


[Site "https://www.chess.com"]

[Event "Titled Tuesday Blitz September 21 2021"]
[White "Gelman, Alexander"]
[Black "Zubov, Alexander"]
[WhiteFideId "4118316"]
[BlackFideId "14109409"]
[WhiteElo "2375"]
[BlackElo "2740"]
[Result "1-0"]
[Round "03"]
[TimeControl "180+1"]
[Date "2021.09.21"]
[WhiteClock "0:00:45"]
[BlackClock "0:00:20"]

1. d4 {[%clk 0:03:00]}  Nf6 {[%clk 0:02:59]} 2. Nc3 {[%clk 0:03:01]}  d5 {[%clk 0:02:59]} 3. Bf4 {[%clk 0:03:01]}  c5 {[%clk 0:03:00]} 4. e3 {[%clk 0:03:01]}  cxd4 {[%clk 0:03:00]} 5. exd4 {[%clk 0:03:01]}  Bg4 {[%clk 0:03:00]} 6. f3 {[%clk 0:03:01]}  Bd7 {[%clk 0:03:00]} 7. Qd2 {[%clk 0:02:59]}  Nc6 {[%clk 0:02:56]} 8. g4 {[%clk 0:02:59]}  Rc8 {[%clk 0:02:23]} 9. h4 {[%clk 0:02:59]}  e6 {[%clk 0:02:20]} 10. h5 {[%clk 0:02:57]}  h6 {[%clk 0:02:19]} 11. Nge2 {[%clk 0:02:43]}  Na5 {[%clk 0:02:12]} 12. Ng3 {[%clk 0:02:39]}  Nc4 {[%clk 0:02:11]} 13. Bxc4 {[%clk 0:02:38]}  Rxc4 {[%clk 0:02:12]} 14. g5 {[%clk 0:02:26]}  hxg5 {[%clk 0:02:11]} 15. Bxg5 {[%clk 0:02:27]}  Qb6 {[%clk 0:01:49]} 16. O-O-O {[%clk 0:02:16]}  Be7 {[%clk 0:00:57]} 17. Kb1 {[%clk 0:01:34]}  Bb4 {[%clk 0:00:48]} 18. Nge2 {[%clk 0:01:34]}  Nxh5 {[%clk 0:00:46]} 19. Qe3 {[%clk 0:01:24]}  Qc6 {[%clk 0:00:37]} 20. a3 {[%clk 0:01:20]}  Bxc3 {[%clk 0:00:36]} 21. Nxc3 {[%clk 0:01:19]}  g6 {[%clk 0:00:30]} 22. Bh4 {[%clk 0:01:06]}  Rxc3 {[%clk 0:00:25]} 23. bxc3 {[%clk 0:01:02]}  Qd6 {[%clk 0:00:25]} 24. Qg5 {[%clk 0:00:55]}  Kf8 {[%clk 0:00:20]} 25. Qd8+ {[%clk 0:00:46]}  Kg7 {[%clk 0:00:20]} 26. Bf6+ {[%clk 0:00:45]}  Nxf6 {[%clk 0:00:20]} 27. Qxh8# {[%clk 0:00:45]} 1-0


[Site "https://www.chess.com"]

[Event "Titled Tuesday Blitz September 21 2021"]
[White "Ghimpu, Samuel-Timotei"]
[Black "Holt, Conrad"]
[WhiteFideId "1238175"]
[BlackFideId "2034387"]
[WhiteElo "2012"]
[BlackElo "2586"]
[Result "0-1"]
[Round "03"]
[TimeControl "180+1"]
[Date "2021.09.21"]
[WhiteClock "0:00:40"]
[BlackClock "0:01:26"]

1. b3 {[%clk 0:03:00]}  d5 {[%clk 0:02:58]} 2. Bb2 {[%clk 0:03:01]}  Bg4 {[%clk 0:02:58]} 3. f3 {[%clk 0:02:58]}  Bd7 {[%clk 0:02:55]} 4. f4 {[%clk 0:02:54]}  Nf6 {[%clk 0:02:48]} 5. Nf3 {[%clk 0:02:54]}  e6 {[%clk 0:02:46]} 6. e3 {[%clk 0:02:54]}  Bd6 {[%clk 0:02:46]} 7. Be2 {[%clk 0:02:51]}  c5 {[%clk 0:02:45]} 8. O-O {[%clk 0:02:51]}  Nc6 {[%clk 0:02:45]} 9. Qe1 {[%clk 0:02:51]}  O-O {[%clk 0:02:44]} 10. d3 {[%clk 0:02:44]}  d4 {[%clk 0:02:35]} 11. Nbd2 {[%clk 0:02:11]}  dxe3 {[%clk 0:02:32]} 12. Nc4 {[%clk 0:02:10]}  Bxf4 {[%clk 0:02:31]} 13. Qh4 {[%clk 0:02:11]}  Nd5 {[%clk 0:02:25]} 14. Qg4 {[%clk 0:02:08]}  e5 {[%clk 0:02:23]} 15. Qh5 {[%clk 0:01:55]}  g6 {[%clk 0:02:20]} 16. Qh4 {[%clk 0:01:55]}  Nd4 {[%clk 0:02:19]} 17. Bxd4 {[%clk 0:01:45]}  Qxh4 {[%clk 0:02:15]} 18. Nxh4 {[%clk 0:01:45]}  exd4 {[%clk 0:02:07]} 19. Bf3 {[%clk 0:01:46]}  Nc3 {[%clk 0:02:00]} 20. Bxb7 {[%clk 0:01:41]}  Rab8 {[%clk 0:01:59]} 21. Bf3 {[%clk 0:01:41]}  g5 {[%clk 0:01:59]} 22. g3 {[%clk 0:01:41]}  Bxg3 {[%clk 0:01:57]} 23. hxg3 {[%clk 0:01:41]}  gxh4 {[%clk 0:01:57]} 24. gxh4 {[%clk 0:01:42]}  Kh8 {[%clk 0:01:56]} 25. Kh2 {[%clk 0:01:25]}  Rbe8 {[%clk 0:01:52]} 26. Bh5 {[%clk 0:01:16]}  e2 {[%clk 0:01:46]} 27. Rg1 {[%clk 0:01:03]}  Re6 {[%clk 0:01:44]} 28. Bg4 {[%clk 0:00:59]}  f5 {[%clk 0:01:44]} 29. Bf3 {[%clk 0:00:58]}  Bb5 {[%clk 0:01:41]} 30. Nd2 {[%clk 0:00:48]}  Rfe8 {[%clk 0:01:30]} 31. Rae1 {[%clk 0:00:42]}  Nxa2 {[%clk 0:01:30]} 32. Rg5 {[%clk 0:00:40]}  Nb4 {[%clk 0:01:26]} 0-1


[Site "https://www.chess.com"]

[Event "Titled Tuesday Blitz September 21 2021"]
[White "Gorin, Leonid"]
[Black "Vusatiuk, Vladimir"]
[WhiteFideId "4131991"]
[BlackFideId "14118610"]
[WhiteElo "2363"]
[BlackElo "2167"]
[Result "1-0"]
[Round "03"]
[TimeControl "180+1"]
[Date "2021.09.21"]
[WhiteClock "0:00:09"]
[BlackClock "0:00:16"]

1. e4 {[%clk 0:02:58]}  e6 {[%clk 0:02:58]} 2. d4 {[%clk 0:02:57]}  d5 {[%clk 0:02:58]} 3. Nd2 {[%clk 0:02:57]}  c5 {[%clk 0:02:57]} 4. dxc5 {[%clk 0:02:56]}  Bxc5 {[%clk 0:02:46]} 5. Bd3 {[%clk 0:02:56]}  Nf6 {[%clk 0:02:44]} 6. Qe2 {[%clk 0:02:55]}  Nc6 {[%clk 0:02:42]} 7. Ngf3 {[%clk 0:02:55]}  e5 {[%clk 0:02:35]} 8. exd5 {[%clk 0:02:52]}  Qxd5 {[%clk 0:02:36]} 9. Ne4 {[%clk 0:02:50]}  Be7 {[%clk 0:02:27]} 10. O-O {[%clk 0:02:41]}  Bg4 {[%clk 0:02:22]} 11. c3 {[%clk 0:02:34]}  Rd8 {[%clk 0:02:16]} 12. Nxf6+ {[%clk 0:02:31]}  Bxf6 {[%clk 0:02:12]} 13. Be4 {[%clk 0:02:31]}  Qe6 {[%clk 0:02:00]} 14. h3 {[%clk 0:02:27]}  Bh5 {[%clk 0:01:59]} 15. Re1 {[%clk 0:02:22]}  O-O {[%clk 0:01:50]} 16. Qc2 {[%clk 0:02:15]}  Bg6 {[%clk 0:01:46]} 17. Be3 {[%clk 0:02:08]}  Rd7 {[%clk 0:01:35]} 18. Bxg6 {[%clk 0:01:54]}  hxg6 {[%clk 0:01:34]} 19. Qe4 {[%clk 0:01:52]}  Rfd8 {[%clk 0:01:30]} 20. g4 {[%clk 0:01:41]}  Qd5 {[%clk 0:01:25]} 21. Qxd5 {[%clk 0:01:38]}  Rxd5 {[%clk 0:01:26]} 22. Re2 {[%clk 0:01:37]}  b5 {[%clk 0:01:06]} 23. Rd2 {[%clk 0:01:25]}  a5 {[%clk 0:00:58]} 24. Rxd5 {[%clk 0:01:21]}  Rxd5 {[%clk 0:00:58]} 25. Kf1 {[%clk 0:01:22]}  b4 {[%clk 0:00:57]} 26. c4 {[%clk 0:01:17]}  Rd7 {[%clk 0:00:53]} 27. Rb1 {[%clk 0:01:14]}  e4 {[%clk 0:00:49]} 28. Nd2 {[%clk 0:01:13]}  Bd4 {[%clk 0:00:27]} 29. Ke2 {[%clk 0:00:58]}  f5 {[%clk 0:00:26]} 30. b3 {[%clk 0:00:53]}  Ne5 {[%clk 0:00:26]} 31. Bf4 {[%clk 0:00:47]}  Nd3 {[%clk 0:00:23]} 32. Be3 {[%clk 0:00:46]}  Bc3 {[%clk 0:00:22]} 33. f3 {[%clk 0:00:41]}  f4 {[%clk 0:00:20]} 34. Nxe4 {[%clk 0:00:35]}  fxe3 {[%clk 0:00:20]} 35. Kxe3 {[%clk 0:00:33]}  Be5 {[%clk 0:00:16]} 36. Rd1 {[%clk 0:00:30]}  Bf4+ {[%clk 0:00:16]} 37. Ke2 {[%clk 0:00:30]}  Nc1+ {[%clk 0:00:17]} 38. Ke1 {[%clk 0:00:29]}  Rxd1+ {[%clk 0:00:17]} 39. Kxd1 {[%clk 0:00:29]}  Nxa2 {[%clk 0:00:18]} 40. Kc2 {[%clk 0:00:28]}  Nc3 {[%clk 0:00:16]} 41. Nc5 {[%clk 0:00:24]}  Kf7 {[%clk 0:00:13]} 42. Kd3 {[%clk 0:00:21]}  g5 {[%clk 0:00:11]} 43. Nb7 {[%clk 0:00:20]}  Bc7 {[%clk 0:00:11]} 44. Nc5 {[%clk 0:00:19]}  Kf6 {[%clk 0:00:12]} 45. Na6 {[%clk 0:00:16]}  Bb6 {[%clk 0:00:11]} 46. c5 {[%clk 0:00:16]}  Ba7 {[%clk 0:00:09]} 47. c6 {[%clk 0:00:15]}  Ke6 {[%clk 0:00:07]} 48. Nc7+ {[%clk 0:00:13]}  Kd6 {[%clk 0:00:07]} 49. Ne8+ {[%clk 0:00:13]}  Kxc6 {[%clk 0:00:07]} 50. Nxg7 {[%clk 0:00:13]}  Bb8 {[%clk 0:00:07]} 51. Nf5 {[%clk 0:00:12]}  Bf4 {[%clk 0:00:07]} 52. h4 {[%clk 0:00:12]}  gxh4 {[%clk 0:00:07]} 53. Nxh4 {[%clk 0:00:11]}  Kb5 {[%clk 0:00:06]} 54. Ng2 {[%clk 0:00:11]}  Bc1 {[%clk 0:00:06]} 55. Kc2 {[%clk 0:00:11]}  Bh6 {[%clk 0:00:05]} 56. f4 {[%clk 0:00:11]}  a4 {[%clk 0:00:05]} 57. g5 {[%clk 0:00:10]}  Bg7 {[%clk 0:00:06]} 58. f5 {[%clk 0:00:10]}  a3 {[%clk 0:00:05]} 59. f6 {[%clk 0:00:10]}  a2 {[%clk 0:00:05]} 60. Kb2 {[%clk 0:00:10]}  Bf8 {[%clk 0:00:05]} 61. g6 {[%clk 0:00:06]}  Nd1+ {[%clk 0:00:05]} 62. Kxa2 {[%clk 0:00:05]}  Nc3+ {[%clk 0:00:06]} 63. Ka1 {[%clk 0:00:05]}  Bc5 {[%clk 0:00:04]} 64. g7 {[%clk 0:00:05]}  Bd4 {[%clk 0:00:04]} 65. g8=Q {[%clk 0:00:05]}  Ne2+ {[%clk 0:00:03]} 66. Kb1 {[%clk 0:00:05]}  Nc3+ {[%clk 0:00:04]} 67. Kc2 {[%clk 0:00:05]}  Nd5 {[%clk 0:00:05]} 68. Qf8 {[%clk 0:00:05]}  Bc5 {[%clk 0:00:06]} 69. Qe8+ {[%clk 0:00:05]}  Kb6 {[%clk 0:00:06]} 70. f7 {[%clk 0:00:05]}  Nc7 {[%clk 0:00:06]} 71. Qe5 {[%clk 0:00:04]}  Nb5 {[%clk 0:00:07]} 72. Qf6+ {[%clk 0:00:04]}  Ka5 {[%clk 0:00:07]} 73. f8=Q {[%clk 0:00:04]}  Na3+ {[%clk 0:00:08]} 74. Kd3 {[%clk 0:00:03]}  Bxf8 {[%clk 0:00:09]} 75. Qxf8 {[%clk 0:00:03]}  Nb5 {[%clk 0:00:10]} 76. Qc5 {[%clk 0:00:04]}  Ka6 {[%clk 0:00:10]} 77. Qxb5+ {[%clk 0:00:04]}  Kxb5 {[%clk 0:00:10]} 78. Ne3 {[%clk 0:00:04]}  Kc5 {[%clk 0:00:11]} 79. Nc2 {[%clk 0:00:05]}  Kb5 {[%clk 0:00:12]} 80. Kd4 {[%clk 0:00:05]}  Ka5 {[%clk 0:00:12]} 81. Kc4 {[%clk 0:00:06]}  Ka6 {[%clk 0:00:13]} 82. Nxb4+ {[%clk 0:00:06]}  Kb6 {[%clk 0:00:14]} 83. Nd5+ {[%clk 0:00:06]}  Ka5 {[%clk 0:00:15]} 84. b4+ {[%clk 0:00:07]}  Ka6 {[%clk 0:00:15]} 85. b5+ {[%clk 0:00:07]}  Ka5 {[%clk 0:00:16]} 86. Kc5 {[%clk 0:00:07]}  Ka4 {[%clk 0:00:16]} 87. b6 {[%clk 0:00:08]}  Ka5 {[%clk 0:00:17]} 88. b7 {[%clk 0:00:08]}  Ka6 {[%clk 0:00:18]} 89. b8=Q {[%clk 0:00:08]}  Ka5 {[%clk 0:00:16]} 90. Qb5# {[%clk 0:00:09]} 1-0


[Site "https://www.chess.com"]

[Event "Titled Tuesday Blitz September 21 2021"]
[White "Hambleton, Aman"]
[Black "Avramidou, Anastasia"]
[WhiteFideId "2606577"]
[BlackFideId "4239873"]
[WhiteElo "2552"]
[BlackElo "2183"]
[Result "1-0"]
[Round "03"]
[TimeControl "180+1"]
[Date "2021.09.21"]
[WhiteClock "0:00:24"]
[BlackClock "0:00:01"]

1. d4 {[%clk 0:03:00]}  Nf6 {[%clk 0:02:58]} 2. c4 {[%clk 0:03:00]}  e6 {[%clk 0:02:58]} 3. Nc3 {[%clk 0:02:59]}  d5 {[%clk 0:02:57]} 4. cxd5 {[%clk 0:02:59]}  exd5 {[%clk 0:02:57]} 5. Bg5 {[%clk 0:02:59]}  Be7 {[%clk 0:02:56]} 6. e3 {[%clk 0:02:59]}  c6 {[%clk 0:02:57]} 7. Bd3 {[%clk 0:02:58]}  Be6 {[%clk 0:02:57]} 8. Nge2 {[%clk 0:02:57]}  O-O {[%clk 0:02:57]} 9. O-O {[%clk 0:02:50]}  Nbd7 {[%clk 0:02:57]} 10. f3 {[%clk 0:02:47]}  h6 {[%clk 0:02:56]} 11. Bh4 {[%clk 0:02:47]}  Re8 {[%clk 0:02:56]} 12. Bf2 {[%clk 0:02:46]}  Nf8 {[%clk 0:02:55]} 13. h3 {[%clk 0:02:42]}  Rc8 {[%clk 0:02:55]} 14. e4 {[%clk 0:02:35]}  dxe4 {[%clk 0:02:00]} 15. fxe4 {[%clk 0:02:36]}  c5 {[%clk 0:01:51]} 16. d5 {[%clk 0:02:26]}  c4 {[%clk 0:01:43]} 17. Bc2 {[%clk 0:02:26]}  Bd7 {[%clk 0:01:43]} 18. d6 {[%clk 0:02:23]}  Bc6 {[%clk 0:01:34]} 19. dxe7 {[%clk 0:02:22]}  Qxe7 {[%clk 0:01:34]} 20. Ng3 {[%clk 0:02:10]}  Qe5 {[%clk 0:01:30]} 21. Qd4 {[%clk 0:02:04]}  Qg5 {[%clk 0:01:20]} 22. Qe3 {[%clk 0:01:41]}  Qe5 {[%clk 0:01:19]} 23. Qc5 {[%clk 0:01:27]}  Qf4 {[%clk 0:01:07]} 24. Nh5 {[%clk 0:01:14]}  Nxh5 {[%clk 0:00:59]} 25. Qxh5 {[%clk 0:01:15]}  Qd2 {[%clk 0:00:49]} 26. Qe2 {[%clk 0:01:13]}  Qxe2 {[%clk 0:00:48]} 27. Nxe2 {[%clk 0:01:14]}  Bxe4 {[%clk 0:00:49]} 28. Bxe4 {[%clk 0:01:14]}  Rxe4 {[%clk 0:00:49]} 29. Nc3 {[%clk 0:01:15]}  Re5 {[%clk 0:00:41]} 30. Bxa7 {[%clk 0:01:12]}  b5 {[%clk 0:00:42]} 31. a3 {[%clk 0:01:05]}  Ne6 {[%clk 0:00:25]} 32. Rae1 {[%clk 0:01:02]}  Rg5 {[%clk 0:00:20]} 33. Be3 {[%clk 0:01:01]}  Re5 {[%clk 0:00:17]} 34. Bd2 {[%clk 0:00:43]}  Rh5 {[%clk 0:00:12]} 35. Ne4 {[%clk 0:00:41]}  Rb8 {[%clk 0:00:09]} 36. Bc3 {[%clk 0:00:39]}  Rd5 {[%clk 0:00:07]} 37. Re2 {[%clk 0:00:35]}  Rd3 {[%clk 0:00:07]} 38. Rf5 {[%clk 0:00:27]}  Re8 {[%clk 0:00:03]} 39. Nc5 {[%clk 0:00:25]}  Kh7 {[%clk 0:00:01]} 40. Nxd3 {[%clk 0:00:24]} 1-0


[Site "https://www.chess.com"]

[Event "Titled Tuesday Blitz September 21 2021"]
[White "Harshavardhan G B"]
[Black "Grandelius, Nils"]
[WhiteFideId "25059009"]
[BlackFideId "1710400"]
[WhiteElo "1825"]
[BlackElo "2651"]
[Result "1-0"]
[Round "03"]
[TimeControl "180+1"]
[Date "2021.09.21"]
[WhiteClock "0:00:07"]
[BlackClock "0:00:02"]

1. d4 {[%clk 0:03:00]}  d5 {[%clk 0:02:59]} 2. c4 {[%clk 0:03:00]}  e6 {[%clk 0:02:57]} 3. Nc3 {[%clk 0:02:59]}  c5 {[%clk 0:02:57]} 4. cxd5 {[%clk 0:02:59]}  exd5 {[%clk 0:02:58]} 5. Nf3 {[%clk 0:02:57]}  Nf6 {[%clk 0:02:58]} 6. g3 {[%clk 0:02:57]}  Nc6 {[%clk 0:02:58]} 7. Bg2 {[%clk 0:02:56]}  cxd4 {[%clk 0:02:59]} 8. Nxd4 {[%clk 0:02:56]}  Bc5 {[%clk 0:03:00]} 9. Nb3 {[%clk 0:02:52]}  Bb6 {[%clk 0:02:58]} 10. O-O {[%clk 0:02:51]}  d4 {[%clk 0:02:58]} 11. Na4 {[%clk 0:02:50]}  O-O {[%clk 0:02:58]} 12. Nxb6 {[%clk 0:02:49]}  axb6 {[%clk 0:02:58]} 13. Bxc6 {[%clk 0:02:47]}  bxc6 {[%clk 0:02:53]} 14. Qxd4 {[%clk 0:02:47]}  Qc7 {[%clk 0:02:48]} 15. Bf4 {[%clk 0:02:44]}  Qb7 {[%clk 0:02:47]} 16. Be5 {[%clk 0:02:43]}  Bh3 {[%clk 0:02:32]} 17. Qh4 {[%clk 0:02:14]}  Bxf1 {[%clk 0:02:28]} 18. Bxf6 {[%clk 0:02:14]}  gxf6 {[%clk 0:02:19]} 19. Rxf1 {[%clk 0:01:55]}  Rfe8 {[%clk 0:01:56]} 20. Nd4 {[%clk 0:01:51]}  Re5 {[%clk 0:01:27]} 21. Qxf6 {[%clk 0:01:47]}  Qe7 {[%clk 0:01:25]} 22. Qxc6 {[%clk 0:01:42]}  Rxa2 {[%clk 0:01:16]} 23. Qc8+ {[%clk 0:01:26]}  Qf8 {[%clk 0:01:07]} 24. Qg4+ {[%clk 0:01:20]}  Qg7 {[%clk 0:01:06]} 25. Qc8+ {[%clk 0:01:17]}  Qf8 {[%clk 0:01:06]} 26. Qg4+ {[%clk 0:01:17]}  Qg7 {[%clk 0:00:54]} 27. Qf4 {[%clk 0:01:10]}  Rxb2 {[%clk 0:00:44]} 28. Rc1 {[%clk 0:01:07]}  Rc5 {[%clk 0:00:40]} 29. Ra1 {[%clk 0:01:00]}  Ra5 {[%clk 0:00:37]} 30. Rc1 {[%clk 0:00:51]}  Rc5 {[%clk 0:00:24]} 31. Rxc5 {[%clk 0:00:32]}  bxc5 {[%clk 0:00:25]} 32. Nf5 {[%clk 0:00:30]}  Qf6 {[%clk 0:00:22]} 33. Nh6+ {[%clk 0:00:21]}  Kg7 {[%clk 0:00:22]} 34. Nf5+ {[%clk 0:00:21]}  Kf8 {[%clk 0:00:21]} 35. e4 {[%clk 0:00:19]}  c4 {[%clk 0:00:14]} 36. Qc7 {[%clk 0:00:17]}  Qe6 {[%clk 0:00:04]} 37. Qd8+ {[%clk 0:00:17]}  Qe8 {[%clk 0:00:04]} 38. Qd6+ {[%clk 0:00:16]}  Kg8 {[%clk 0:00:05]} 39. Qd4 {[%clk 0:00:16]}  Rb1+ {[%clk 0:00:04]} 40. Kg2 {[%clk 0:00:16]}  Qf8 {[%clk 0:00:03]} 41. Qf6 {[%clk 0:00:15]}  h5 {[%clk 0:00:02]} 42. Nh6+ {[%clk 0:00:14]}  Kh7 {[%clk 0:00:03]} 43. Nf5 {[%clk 0:00:14]}  Rb5 {[%clk 0:00:02]} 44. Qg5 {[%clk 0:00:14]}  Rxf5 {[%clk 0:00:01]} 45. Qxf5+ {[%clk 0:00:14]}  Kg8 {[%clk 0:00:02]} 46. Qg5+ {[%clk 0:00:13]}  Kh8 {[%clk 0:00:03]} 47. Qxh5+ {[%clk 0:00:13]}  Kg8 {[%clk 0:00:03]} 48. Qg5+ {[%clk 0:00:13]}  Kh8 {[%clk 0:00:04]} 49. Qe5+ {[%clk 0:00:13]}  Kg8 {[%clk 0:00:04]} 50. Qc7 {[%clk 0:00:14]}  Qb4 {[%clk 0:00:03]} 51. e5 {[%clk 0:00:13]}  c3 {[%clk 0:00:03]} 52. Qd8+ {[%clk 0:00:12]}  Kg7 {[%clk 0:00:04]} 53. Qc7 {[%clk 0:00:12]}  Qe4+ {[%clk 0:00:03]} 54. Kh3 {[%clk 0:00:11]}  c2 {[%clk 0:00:03]} 55. f4 {[%clk 0:00:10]}  Qf5+ {[%clk 0:00:03]} 56. Kg2 {[%clk 0:00:10]}  Qe4+ {[%clk 0:00:04]} 57. Kh3 {[%clk 0:00:10]}  Qe2 {[%clk 0:00:04]} 58. g4 {[%clk 0:00:09]}  Qd1 {[%clk 0:00:04]} 59. e6 {[%clk 0:00:09]}  Qf3+ {[%clk 0:00:04]} 60. Kh4 {[%clk 0:00:09]}  Qf2+ {[%clk 0:00:03]} 61. Kg5 {[%clk 0:00:08]}  Qd2 {[%clk 0:00:01]} 62. Qxf7+ {[%clk 0:00:07]}  Kh8 {[%clk 0:00:02]} 63. e7 {[%clk 0:00:07]} 1-0


[Site "https://www.chess.com"]